[Event "World Junior Chess Championship U20 2022"]
[White "Boyer, Mahel"]
[Black "Tan, Jun Ying"]
[WhiteFideId "45102422"]
[BlackFideId "5710413"]
[WhiteElo "2445"]
[BlackElo "2189"]
[Result "1-0"]
[Round "02"]
[TimeControl "5400+30"]
[Date "2022.10.13"]
[WhiteClock "0:40:40"]
[BlackClock "0:00:55"]

1. d4 {[%clk 1:26:12]}  Nf6 {[%clk 1:30:51]} 2. c4 {[%clk 1:26:26]}  e6 {[%clk 1:31:09]} 3. Nf3 {[%clk 1:26:20]}  Bb4+ {[%clk 1:31:06]} 4. Nbd2 {[%clk 1:25:20]}  b6 {[%clk 1:29:09]} 5. a3 {[%clk 1:25:03]}  Bxd2+ {[%clk 1:29:28]} 6. Qxd2 {[%clk 1:21:47]}  Bb7 {[%clk 1:23:52]} 7. e3 {[%clk 1:20:33]}  Ne4 {[%clk 1:21:07]} 8. Qc2 {[%clk 1:19:23]}  f5 {[%clk 1:19:49]} 9. b3 {[%clk 1:11:36]}  d6 {[%clk 1:15:46]} 10. Bb2 {[%clk 1:10:45]}  O-O {[%clk 1:15:10]} 11. Bd3 {[%clk 0:58:16]}  Nd7 {[%clk 1:15:07]} 12. O-O {[%clk 0:57:25]}  Ng5 {[%clk 1:04:10]} 13. Ne1 {[%clk 0:52:11]}  g6 {[%clk 0:58:00]} 14. f3 {[%clk 0:46:59]}  Qe7 {[%clk 0:56:27]} 15. Be2 {[%clk 0:37:53]}  e5 {[%clk 0:43:47]} 16. dxe5 {[%clk 0:36:05]}  dxe5 {[%clk 0:44:09]} 17. c5 {[%clk 0:33:58]}  Qxc5 {[%clk 0:35:39]} 18. Qxc5 {[%clk 0:33:10]}  Nxc5 {[%clk 0:35:22]} 19. Bc4+ {[%clk 0:29:36]}  Nf7 {[%clk 0:35:17]} 20. Bxe5 {[%clk 0:30:04]}  b5 {[%clk 0:34:16]} 21. Bxf7+ {[%clk 0:28:17]}  Rxf7 {[%clk 0:34:37]} 22. b4 {[%clk 0:28:37]}  Ne6 {[%clk 0:34:25]} 23. Rd1 {[%clk 0:26:48]}  Kf8 {[%clk 0:32:07]} 24. Rf2 {[%clk 0:26:59]}  Ke8 {[%clk 0:31:37]} 25. Rfd2 {[%clk 0:26:19]}  Rd8 {[%clk 0:30:35]} 26. Rxd8+ {[%clk 0:26:40]}  Nxd8 {[%clk 0:31:02]} 27. Bd4 {[%clk 0:26:02]}  a6 {[%clk 0:26:50]} 28. Nd3 {[%clk 0:26:21]}  Ne6 {[%clk 0:26:30]} 29. Ne5 {[%clk 0:25:11]}  Re7 {[%clk 0:24:02]} 30. h4 {[%clk 0:23:21]}  f4 {[%clk 0:19:11]} 31. Kf2 {[%clk 0:23:08]}  c5 {[%clk 0:15:11]} 32. bxc5 {[%clk 0:21:59]}  fxe3+ {[%clk 0:15:00]} 33. Bxe3 {[%clk 0:21:59]}  Nxc5 {[%clk 0:15:14]} 34. Nxg6 {[%clk 0:18:24]}  Rxe3 {[%clk 0:12:02]} 35. Kxe3 {[%clk 0:18:40]}  hxg6 {[%clk 0:12:30]} 36. Rd6 {[%clk 0:19:02]}  Kf7 {[%clk 0:09:24]} 37. Rb6 {[%clk 0:18:08]}  Bd5 {[%clk 0:05:47]} 38. Kd4 {[%clk 0:18:08]}  Nd7 {[%clk 0:05:53]} 39. Rxa6 {[%clk 0:18:28]}  Bc4 {[%clk 0:05:47]} 40. g4 {[%clk 0:11:50]}  Be2 {[%clk 0:05:26]} 41. Ke3 {[%clk 0:12:12]}  Bc4 {[%clk 0:03:46]} 42. Ra7 {[%clk 0:08:05]}  Ke6 {[%clk 0:16:21]} 43. h5 {[%clk 0:37:59]}  gxh5 {[%clk 0:14:33]} 44. gxh5 {[%clk 0:38:28]}  Kd6 {[%clk 0:13:39]} 45. h6 {[%clk 0:37:51]}  Bg8 {[%clk 0:13:16]} 46. Ra8 {[%clk 0:38:11]}  Bh7 {[%clk 0:13:05]} 47. Rh8 {[%clk 0:38:36]}  Nf6 {[%clk 0:07:49]} 48. Rb8 {[%clk 0:38:29]}  Kc6 {[%clk 0:03:44]} 49. Rf8 {[%clk 0:38:33]}  Nd7 {[%clk 0:03:27]} 50. Rf7 {[%clk 0:38:51]}  Bg6 {[%clk 0:01:42]} 51. h7 {[%clk 0:38:11]}  Bxf7 {[%clk 0:02:00]} 52. h8=Q {[%clk 0:38:36]}  Kd6 {[%clk 0:01:27]} 53. Kd4 {[%clk 0:39:03]}  Be6 {[%clk 0:01:12]} 54. f4 {[%clk 0:39:24]}  Ke7 {[%clk 0:00:58]} 55. Qg7+ {[%clk 0:39:48]}  Kd6 {[%clk 0:01:06]} 56. Qh6 {[%clk 0:40:13]}  Ke7 {[%clk 0:00:55]} 57. Qg5+ {[%clk 0:40:40]} 1-0


[Site "http://www.chessbomb.com"]

[Event "World Junior Chess Championship U20 2022"]
[White "Muradli, Mahammad"]
[Black "Johannsson, Birkir Isak"]
[WhiteFideId "13409301"]
[BlackFideId "2314673"]
[WhiteElo "2550"]
[BlackElo "2165"]
[Result "1-0"]
[Round "02"]
[TimeControl "5400+30"]
[Date "2022.10.13"]
[WhiteClock "0:52:49"]
[BlackClock "0:21:31"]

1. c4 {[%clk 1:22:23]}  e6 {[%clk 1:30:41]} 2. Nc3 {[%clk 1:22:42]}  d5 {[%clk 1:31:00]} 3. d4 {[%clk 1:23:06]}  c6 {[%clk 1:31:13]} 4. e3 {[%clk 1:21:03]}  Nf6 {[%clk 1:31:17]} 5. Bd2 {[%clk 1:20:08]}  Nbd7 {[%clk 1:30:07]} 6. a3 {[%clk 1:18:00]}  b6 {[%clk 1:24:46]} 7. cxd5 {[%clk 1:16:39]}  cxd5 {[%clk 1:21:40]} 8. Bd3 {[%clk 1:11:42]}  Bb7 {[%clk 1:17:51]} 9. f4 {[%clk 1:11:49]}  Be7 {[%clk 1:15:27]} 10. Nf3 {[%clk 1:11:47]}  O-O {[%clk 1:13:03]} 11. O-O {[%clk 1:10:27]}  Rc8 {[%clk 1:09:30]} 12. Ne5 {[%clk 1:08:05]}  Ne4 {[%clk 1:05:57]} 13. Bxe4 {[%clk 1:01:38]}  dxe4 {[%clk 1:03:48]} 14. Qa4 {[%clk 1:01:47]}  Nxe5 {[%clk 0:57:48]} 15. fxe5 {[%clk 1:02:12]}  a6 {[%clk 0:55:30]} 16. Qd1 {[%clk 1:02:17]}  f5 {[%clk 0:39:15]} 17. exf6 {[%clk 0:59:16]}  Rxf6 {[%clk 0:39:07]} 18. Rxf6 {[%clk 0:58:00]}  Bxf6 {[%clk 0:39:07]} 19. Qg4 {[%clk 0:54:03]}  Bd5 {[%clk 0:28:08]} 20. Rf1 {[%clk 0:52:47]}  Qe8 {[%clk 0:21:31]} 21. Rxf6 {[%clk 0:52:49]} 1-0


[Site "http://www.chessbomb.com"]

[Event "World Junior Chess Championship U20 2022"]
[White "Olsen, Filip Boe"]
[Black "Sitbon, Itay"]
[WhiteFideId "1440640"]
[BlackFideId "2820706"]
[WhiteElo "2433"]
[BlackElo "2133"]
[Result "1/2-1/2"]
[Round "02"]
[TimeControl "5400+30"]
[Date "2022.10.13"]
[WhiteClock "0:13:46"]
[BlackClock "0:21:12"]

1. d4 {[%clk 1:30:55]}  Nf6 {[%clk 1:30:59]} 2. c4 {[%clk 1:31:14]}  e6 {[%clk 1:31:08]} 3. Nf3 {[%clk 1:30:26]}  d5 {[%clk 1:28:10]} 4. g3 {[%clk 1:29:00]}  Bb4+ {[%clk 1:27:44]} 5. Bd2 {[%clk 1:27:45]}  Be7 {[%clk 1:27:35]} 6. Bg2 {[%clk 1:28:06]}  O-O {[%clk 1:27:56]} 7. O-O {[%clk 1:28:27]}  c6 {[%clk 1:27:25]} 8. Bf4 {[%clk 1:27:06]}  b6 {[%clk 1:24:28]} 9. Nc3 {[%clk 1:22:25]}  Bb7 {[%clk 1:22:46]} 10. Qd3 {[%clk 1:16:36]}  Nbd7 {[%clk 1:19:47]} 11. b3 {[%clk 1:10:54]}  c5 {[%clk 1:12:16]} 12. cxd5 {[%clk 1:02:46]}  exd5 {[%clk 1:11:13]} 13. Ne5 {[%clk 0:57:33]}  Re8 {[%clk 0:59:20]} 14. Nxd7 {[%clk 0:53:00]}  Qxd7 {[%clk 0:59:28]} 15. Rad1 {[%clk 0:47:48]}  c4 {[%clk 0:54:05]} 16. bxc4 {[%clk 0:38:32]}  dxc4 {[%clk 0:53:29]} 17. Qb1 {[%clk 0:38:40]}  Bxg2 {[%clk 0:53:12]} 18. Kxg2 {[%clk 0:35:28]}  a5 {[%clk 0:48:02]} 19. Qb5 {[%clk 0:22:58]}  Bb4 {[%clk 0:46:36]} 20. Qxd7 {[%clk 0:23:01]}  Nxd7 {[%clk 0:45:09]} 21. Rc1 {[%clk 0:22:40]}  Bxc3 {[%clk 0:42:40]} 22. Rxc3 {[%clk 0:23:08]}  Rac8 {[%clk 0:32:15]} 23. a4 {[%clk 0:20:21]}  Rxe2 {[%clk 0:31:23]} 24. Rfc1 {[%clk 0:20:34]}  b5 {[%clk 0:27:15]} 25. axb5 {[%clk 0:19:33]}  Nb6 {[%clk 0:27:26]} 26. Bd6 {[%clk 0:13:51]}  Rb2 {[%clk 0:23:19]} 27. Bc5 {[%clk 0:13:46]}  Rxb5 {[%clk 0:21:12]} 1/2-1/2


[Site "http://www.chessbomb.com"]

[Event "World Junior Chess Championship U20 2022"]
[White "Gagic, Milan A"]
[Black "Galaviz Medina, Sion Radamantys"]
[WhiteFideId "979805"]
[BlackFideId "5123119"]
[WhiteElo "2125"]
[BlackElo "2345"]
[Result "0-1"]
[Round "02"]
[TimeControl "5400+30"]
[Date "2022.10.13"]
[WhiteClock "0:16:07"]
[BlackClock "0:33:50"]

1. e4 {[%clk 1:30:43]}  c5 {[%clk 0:00:00]} 2. Nf3 {[%clk 1:31:00]}  d6 {[%clk 1:26:29]} 3. d4 {[%clk 1:31:16]}  cxd4 {[%clk 1:26:54]} 4. Nxd4 {[%clk 1:31:41]}  Nf6 {[%clk 1:27:17]} 5. Nc3 {[%clk 1:32:05]}  a6 {[%clk 1:27:43]} 6. Rg1 {[%clk 1:31:57]}  e6 {[%clk 1:15:31]} 7. g4 {[%clk 1:31:36]}  b5 {[%clk 1:14:57]} 8. g5 {[%clk 1:31:36]}  Nfd7 {[%clk 1:15:22]} 9. a3 {[%clk 1:26:54]}  Bb7 {[%clk 1:15:29]} 10. Be3 {[%clk 1:23:41]}  Nc6 {[%clk 1:15:35]} 11. Nxc6 {[%clk 1:17:08]}  Bxc6 {[%clk 1:15:58]} 12. Qd4 {[%clk 1:17:09]}  Qb8 {[%clk 0:59:25]} 13. f4 {[%clk 1:05:55]}  Qb7 {[%clk 0:56:44]} 14. O-O-O {[%clk 1:04:01]}  a5 {[%clk 0:53:03]} 15. Nd5 {[%clk 0:48:06]}  Nc5 {[%clk 0:52:24]} 16. Bd3 {[%clk 0:37:45]}  exd5 {[%clk 0:47:41]} 17. exd5 {[%clk 0:37:49]}  Bd7 {[%clk 0:47:47]} 18. Bd2 {[%clk 0:35:42]}  Kd8 {[%clk 0:44:04]} 19. Rg3 {[%clk 0:31:47]}  Qc7 {[%clk 0:33:56]} 20. Kb1 {[%clk 0:30:24]}  Nxd3 {[%clk 0:33:50]} 21. cxd3 {[%clk 0:27:17]}  Bf5 {[%clk 0:33:34]} 22. Rc1 {[%clk 0:22:35]}  Qa7 {[%clk 0:33:49]} 23. Qc3 {[%clk 0:21:07]}  Rc8 {[%clk 0:32:28]} 24. Qb3 {[%clk 0:19:18]}  Rxc1+ {[%clk 0:32:50]} 25. Bxc1 {[%clk 0:19:45]}  Qc5 {[%clk 0:33:14]} 26. Be3 {[%clk 0:16:10]}  a4 {[%clk 0:33:14]} 27. Qd1 {[%clk 0:16:08]}  Qxd5 {[%clk 0:33:45]} 28. Qc1 {[%clk 0:16:07]}  Kd7 {[%clk 0:33:50]} 0-1


[Site "http://www.chessbomb.com"]

[Event "World Junior Chess Championship U20 2022"]
[White "Gov, Guy"]
[Black "Utsab, Chatterjee"]
[WhiteFideId "2820200"]
[BlackFideId "46609148"]
[WhiteElo "2121"]
[BlackElo "2345"]
[Result "0-1"]
[Round "02"]
[TimeControl "5400+30"]
[Date "2022.10.13"]
[WhiteClock "0:10:19"]
[BlackClock "0:40:18"]

1. d4 {[%clk 1:24:25]}  d5 {[%clk 1:30:36]} 2. Nf3 {[%clk 1:24:51]}  Nf6 {[%clk 1:31:00]} 3. c4 {[%clk 1:25:14]}  e6 {[%clk 1:31:16]} 4. g3 {[%clk 1:25:38]}  Be7 {[%clk 1:31:25]} 5. Bg2 {[%clk 1:26:02]}  O-O {[%clk 1:31:32]} 6. O-O {[%clk 1:26:28]}  dxc4 {[%clk 1:31:32]} 7. Qc2 {[%clk 1:26:52]}  a6 {[%clk 1:31:51]} 8. a4 {[%clk 1:27:16]}  Bd7 {[%clk 1:32:08]} 9. Qxc4 {[%clk 1:27:40]}  Bc6 {[%clk 1:32:31]} 10. Bf4 {[%clk 1:28:04]}  Bd6 {[%clk 1:32:29]} 11. Qc1 {[%clk 1:28:26]}  a5 {[%clk 1:32:28]} 12. Nc3 {[%clk 1:28:49]}  Na6 {[%clk 1:29:47]} 13. Bg5 {[%clk 1:29:00]}  h6 {[%clk 1:29:37]} 14. Bxf6 {[%clk 1:29:24]}  Qxf6 {[%clk 1:30:00]} 15. e4 {[%clk 1:29:50]}  e5 {[%clk 1:29:29]} 16. d5 {[%clk 1:30:15]}  Bd7 {[%clk 1:29:49]} 17. Nd2 {[%clk 1:30:40]}  Bb4 {[%clk 1:09:29]} 18. Nc4 {[%clk 1:24:35]}  Nc5 {[%clk 1:04:42]} 19. Qc2 {[%clk 1:24:42]}  Rae8 {[%clk 1:05:03]} 20. d6 {[%clk 1:15:54]}  Be6 {[%clk 1:03:23]} 21. Na2 {[%clk 1:06:35]}  Na6 {[%clk 0:56:26]} 22. dxc7 {[%clk 1:00:54]}  Rc8 {[%clk 0:53:35]} 23. Nxb4 {[%clk 0:57:38]}  Nxb4 {[%clk 0:53:45]} 24. Qe2 {[%clk 0:53:47]}  Rxc7 {[%clk 0:54:04]} 25. Ne3 {[%clk 0:49:48]}  Rfc8 {[%clk 0:50:59]} 26. Qb5 {[%clk 0:30:59]}  Nc2 {[%clk 0:46:11]} 27. Rad1 {[%clk 0:30:22]}  Nxe3 {[%clk 0:41:27]} 28. fxe3 {[%clk 0:30:51]}  Bc4 {[%clk 0:41:25]} 29. Rxf6 {[%clk 0:29:45]}  Bxb5 {[%clk 0:41:54]} 30. Rb6 {[%clk 0:23:04]}  Bxa4 {[%clk 0:42:18]} 31. b3 {[%clk 0:23:31]}  Rc1 {[%clk 0:42:13]} 32. Rf1 {[%clk 0:23:55]}  Rxf1+ {[%clk 0:42:27]} 33. Bxf1 {[%clk 0:24:02]}  Bc6 {[%clk 0:42:56]} 34. Bc4 {[%clk 0:23:59]}  Bxe4 {[%clk 0:37:45]} 35. Rb5 {[%clk 0:21:32]}  a4 {[%clk 0:38:04]} 36. Rxe5 {[%clk 0:21:57]}  Bc2 {[%clk 0:38:27]} 37. Rb5 {[%clk 0:15:45]}  Bxb3 {[%clk 0:38:34]} 38. Bxb3 {[%clk 0:16:04]}  axb3 {[%clk 0:39:02]} 39. Rxb3 {[%clk 0:16:21]}  Rb8 {[%clk 0:39:03]} 40. Rb6 {[%clk 0:16:20]}  Kf8 {[%clk 0:39:27]} 41. Kf2 {[%clk 0:16:46]}  Ke7 {[%clk 0:39:51]} 42. e4 {[%clk 0:16:42]}  Kd7 {[%clk 0:40:17]} 43. Ke3 {[%clk 0:17:06]}  Kc7 {[%clk 0:40:44]} 44. Rb5 {[%clk 0:13:14]}  Kc6 {[%clk 0:40:38]} 45. Rf5 {[%clk 0:13:32]}  f6 {[%clk 0:41:04]} 46. Kd4 {[%clk 0:13:48]}  b5 {[%clk 0:41:28]} 47. Rc5+ {[%clk 0:12:37]}  Kb6 {[%clk 0:41:46]} 48. Rd5 {[%clk 0:12:37]}  Rc8 {[%clk 0:40:07]} 49. Rd6+ {[%clk 0:10:59]}  Rc6 {[%clk 0:38:19]} 50. Rd7 {[%clk 0:11:25]}  b4 {[%clk 0:38:21]} 51. Rxg7 {[%clk 0:11:27]}  b3 {[%clk 0:38:21]} 52. Rg8 {[%clk 0:11:44]}  Kb7 {[%clk 0:39:05]} 53. Rg7+ {[%clk 0:10:42]}  Ka6 {[%clk 0:39:32]} 54. Rg8 {[%clk 0:10:17]}  b2 {[%clk 0:39:49]} 55. Rb8 {[%clk 0:10:19]}  Rb6 {[%clk 0:40:18]} 0-1


[Site "http://www.chessbomb.com"]

[Event "World Junior Chess Championship U20 2022"]
[White "Cappelletto, Joshuaede"]
[Black "Urbani, Gabriel"]
[WhiteFideId "2824383"]
[BlackFideId "2830138"]
[WhiteElo "2337"]
[BlackElo "2129"]
[Result "1/2-1/2"]
[Round "02"]
[TimeControl "5400+30"]
[Date "2022.10.13"]
[WhiteClock "0:13:14"]
[BlackClock "0:20:41"]

1. e4 {[%clk 1:30:56]}  e5 {[%clk 1:30:42]} 2. Bc4 {[%clk 1:31:20]}  Nf6 {[%clk 1:30:42]} 3. d3 {[%clk 1:31:45]}  c6 {[%clk 1:30:58]} 4. Nf3 {[%clk 1:32:04]}  d5 {[%clk 1:31:19]} 5. Bb3 {[%clk 1:32:31]}  Bd6 {[%clk 1:31:16]} 6. O-O {[%clk 1:32:32]}  O-O {[%clk 1:31:09]} 7. exd5 {[%clk 1:24:02]}  cxd5 {[%clk 1:31:10]} 8. Nc3 {[%clk 1:24:27]}  d4 {[%clk 1:25:27]} 9. Nb5 {[%clk 1:23:57]}  Bg4 {[%clk 1:25:00]} 10. h3 {[%clk 1:24:04]}  Bh5 {[%clk 1:23:58]} 11. Bg5 {[%clk 1:13:35]}  a6 {[%clk 1:21:42]} 12. Bxf6 {[%clk 1:04:00]}  Qxf6 {[%clk 1:21:53]} 13. Nxd6 {[%clk 1:04:26]}  Qxd6 {[%clk 1:22:16]} 14. g4 {[%clk 1:04:20]}  Bg6 {[%clk 1:22:03]} 15. Nh4 {[%clk 1:04:24]}  Nd7 {[%clk 1:05:35]} 16. f4 {[%clk 0:55:56]}  exf4 {[%clk 1:00:08]} 17. Qf3 {[%clk 0:56:19]}  Nc5 {[%clk 0:56:26]} 18. Qxf4 {[%clk 0:54:30]}  Qxf4 {[%clk 0:55:05]} 19. Rxf4 {[%clk 0:54:55]}  Nxb3 {[%clk 0:54:59]} 20. axb3 {[%clk 0:55:19]}  Bxd3 {[%clk 0:53:53]} 21. cxd3 {[%clk 0:55:03]}  g5 {[%clk 0:54:18]} 22. Rxd4 {[%clk 0:55:25]}  gxh4 {[%clk 0:54:42]} 23. Kf2 {[%clk 0:41:33]}  Rac8 {[%clk 0:49:59]} 24. Re1 {[%clk 0:39:17]}  Rc6 {[%clk 0:48:37]} 25. Re7 {[%clk 0:38:02]}  Rc2+ {[%clk 0:45:49]} 26. Re2 {[%clk 0:38:25]}  Rc6 {[%clk 0:45:33]} 27. Kf3 {[%clk 0:33:03]}  Kg7 {[%clk 0:41:13]} 28. Re7 {[%clk 0:26:26]}  Rc2 {[%clk 0:27:09]} 29. g5 {[%clk 0:25:24]}  Rxb2 {[%clk 0:25:11]} 30. Rxb7 {[%clk 0:25:46]}  Kg6 {[%clk 0:20:42]} 31. Rxh4 {[%clk 0:22:22]}  Kxg5 {[%clk 0:19:02]} 32. Rxh7 {[%clk 0:22:14]}  Rd8 {[%clk 0:18:57]} 33. Ke3 {[%clk 0:16:43]}  f5 {[%clk 0:17:44]} 34. h4+ {[%clk 0:10:50]}  Kg6 {[%clk 0:10:47]} 35. Rhg7+ {[%clk 0:10:47]}  Kh6 {[%clk 0:08:37]} 36. Rgf7 {[%clk 0:09:16]}  Kg6 {[%clk 0:08:22]} 37. Rg7+ {[%clk 0:06:09]}  Kh6 {[%clk 0:07:31]} 38. Rge7 {[%clk 0:06:34]}  Kh5 {[%clk 0:07:26]} 39. Re6 {[%clk 0:05:41]}  Kxh4 {[%clk 0:06:39]} 40. Rxa6 {[%clk 0:03:51]}  Rg8 {[%clk 0:04:38]} 41. Ra1 {[%clk 0:00:34]}  Rbg2 {[%clk 0:30:30]} 42. Rf1 {[%clk 0:22:21]}  R2g3+ {[%clk 0:24:22]} 43. Kd2 {[%clk 0:22:41]}  Rg2+ {[%clk 0:19:52]} 44. Kc3 {[%clk 0:22:56]}  Rc8+ {[%clk 0:19:40]} 45. Kb4 {[%clk 0:23:13]}  Rg4+ {[%clk 0:19:39]} 46. Kb5 {[%clk 0:23:36]}  f4 {[%clk 0:19:24]} 47. Rh7+ {[%clk 0:23:03]}  Kg3 {[%clk 0:19:44]} 48. Rg1+ {[%clk 0:23:03]}  Kf3 {[%clk 0:20:08]} 49. Rxg4 {[%clk 0:20:27]}  Kxg4 {[%clk 0:20:32]} 50. Rg7+ {[%clk 0:18:04]}  Kf3 {[%clk 0:20:50]} 51. d4 {[%clk 0:18:11]}  Ke4 {[%clk 0:20:50]} 52. Rf7 {[%clk 0:18:35]}  Rb8+ {[%clk 0:20:21]} 53. Kc4 {[%clk 0:18:35]}  Rc8+ {[%clk 0:20:35]} 54. Kb5 {[%clk 0:15:07]}  Rb8+ {[%clk 0:20:41]} 55. Kc4 {[%clk 0:13:14]} 1/2-1/2


[Site "http://www.chessbomb.com"]

[Event "World Junior Chess Championship U20 2022"]
[White "Tripodi, Enzo"]
[Black "Raahul, V S"]
[WhiteFideId "2822674"]
[BlackFideId "25035525"]
[WhiteElo "2113"]
[BlackElo "2333"]
[Result "1-0"]
[Round "02"]
[TimeControl "5400+30"]
[Date "2022.10.13"]
[WhiteClock "0:11:53"]
[BlackClock "0:35:12"]

1. e4 {[%clk 1:30:19]}  e6 {[%clk 1:30:21]} 2. d4 {[%clk 1:30:44]}  d5 {[%clk 1:30:48]} 3. Nc3 {[%clk 1:31:11]}  Nf6 {[%clk 1:31:09]} 4. Bg5 {[%clk 1:31:38]}  Be7 {[%clk 1:31:34]} 5. e5 {[%clk 1:32:04]}  Nfd7 {[%clk 1:30:59]} 6. h4 {[%clk 1:32:26]}  Nc6 {[%clk 1:29:22]} 7. Qg4 {[%clk 1:27:32]}  f6 {[%clk 1:26:57]} 8. Nf3 {[%clk 1:23:16]}  h5 {[%clk 1:10:47]} 9. Qf4 {[%clk 1:14:53]}  fxg5 {[%clk 1:08:37]} 10. hxg5 {[%clk 1:15:06]}  Bb4 {[%clk 1:08:22]} 11. Bd3 {[%clk 1:13:45]}  Nf8 {[%clk 1:08:22]} 12. g4 {[%clk 0:46:50]}  h4 {[%clk 1:00:29]} 13. Nxh4 {[%clk 0:45:06]}  Ne7 {[%clk 0:52:16]} 14. Qf3 {[%clk 0:25:40]}  c5 {[%clk 0:51:13]} 15. dxc5 {[%clk 0:23:02]}  Qa5 {[%clk 0:50:09]} 16. O-O-O {[%clk 0:22:53]}  Bxc3 {[%clk 0:50:33]} 17. bxc3 {[%clk 0:21:43]}  Bd7 {[%clk 0:50:22]} 18. Nf5 {[%clk 0:22:03]}  exf5 {[%clk 0:48:55]} 19. Rxh8 {[%clk 0:22:21]}  Qxc3 {[%clk 0:48:07]} 20. e6 {[%clk 0:19:51]}  Qa3+ {[%clk 0:47:03]} 21. Kd2 {[%clk 0:18:54]}  Qb4+ {[%clk 0:46:47]} 22. Ke2 {[%clk 0:17:00]}  Bxe6 {[%clk 0:43:11]} 23. gxf5 {[%clk 0:17:25]}  Bd7 {[%clk 0:42:41]} 24. Qh5+ {[%clk 0:15:05]}  g6 {[%clk 0:42:40]} 25. Rxf8+ {[%clk 0:14:22]}  Kxf8 {[%clk 0:43:05]} 26. Qh6+ {[%clk 0:14:37]}  Kg8 {[%clk 0:42:28]} 27. Rh1 {[%clk 0:10:40]}  Qg4+ {[%clk 0:41:39]} 28. Ke1 {[%clk 0:11:09]}  Qb4+ {[%clk 0:35:51]} 29. Kf1 {[%clk 0:11:37]}  Qb1+ {[%clk 0:35:22]} 30. Kg2 {[%clk 0:11:54]}  Qxh1+ {[%clk 0:35:12]} 31. Kxh1 {[%clk 0:11:53]} 1-0


[Site "http://www.chessbomb.com"]

[Event "World Junior Chess Championship U20 2022"]
[White "Manish, Anto Cristiano F"]
[Black "Carroll, Peter"]
[WhiteFideId "25095927"]
[BlackFideId "2510243"]
[WhiteElo "2332"]
[BlackElo "2115"]
[Result "1-0"]
[Round "02"]
[TimeControl "5400+30"]
[Date "2022.10.13"]
[WhiteClock "0:28:07"]
[BlackClock "0:23:01"]

1. e4 {[%clk 0:00:00]}  c5 {[%clk 1:30:33]} 2. Nf3 {[%clk 1:31:17]}  d6 {[%clk 1:30:59]} 3. d4 {[%clk 1:31:35]}  cxd4 {[%clk 1:31:25]} 4. Nxd4 {[%clk 1:31:59]}  Nf6 {[%clk 1:31:46]} 5. Nc3 {[%clk 1:32:21]}  a6 {[%clk 1:32:13]} 6. h3 {[%clk 1:32:36]}  e5 {[%clk 1:32:13]} 7. Nb3 {[%clk 1:32:57]}  Be6 {[%clk 1:26:11]} 8. f4 {[%clk 1:33:17]}  exf4 {[%clk 1:25:41]} 9. Bxf4 {[%clk 1:33:39]}  Nc6 {[%clk 1:25:59]} 10. Qe2 {[%clk 1:32:57]}  Ne5 {[%clk 1:16:51]} 11. O-O-O {[%clk 1:32:22]}  Qc7 {[%clk 1:15:25]} 12. g4 {[%clk 1:32:08]}  Be7 {[%clk 1:14:05]} 13. g5 {[%clk 1:20:30]}  Nfd7 {[%clk 1:13:59]} 14. Nd4 {[%clk 1:08:52]}  O-O {[%clk 1:10:59]} 15. Nf5 {[%clk 1:05:22]}  Nb6 {[%clk 1:10:00]} 16. h4 {[%clk 1:02:30]}  Rac8 {[%clk 1:03:09]} 17. Qf2 {[%clk 0:58:38]}  Rfe8 {[%clk 0:58:51]} 18. Nxe7+ {[%clk 0:50:51]}  Rxe7 {[%clk 0:59:06]} 19. h5 {[%clk 0:50:11]}  Nec4 {[%clk 0:53:47]} 20. Rd3 {[%clk 0:43:03]}  Qc5 {[%clk 0:37:36]} 21. Qxc5 {[%clk 0:42:30]}  dxc5 {[%clk 0:37:53]} 22. b3 {[%clk 0:34:04]}  Na5 {[%clk 0:35:57]} 23. Rd6 {[%clk 0:28:39]}  Nc6 {[%clk 0:28:48]} 24. Nd5 {[%clk 0:28:29]}  Nxd5 {[%clk 0:22:07]} 25. exd5 {[%clk 0:28:48]}  Bg4 {[%clk 0:22:22]} 26. dxc6 {[%clk 0:28:56]}  Re1+ {[%clk 0:22:48]} 27. Kb2 {[%clk 0:29:08]}  Bf3 {[%clk 0:23:01]} 28. Bh3 {[%clk 0:28:07]} 1-0


[Site "http://www.chessbomb.com"]

[Event "World Junior Chess Championship U20 2022"]
[White "Carlo, Emanuele"]
[Black "Djurovic, Peko"]
[WhiteFideId "2825380"]
[BlackFideId "16503902"]
[WhiteElo "2306"]
[BlackElo "2084"]
[Result "1-0"]
[Round "02"]
[TimeControl "5400+30"]
[Date "2022.10.13"]
[WhiteClock "0:17:14"]
[BlackClock "0:00:32"]

1. e4 {[%clk 1:30:58]}  c5 {[%clk 1:30:48]} 2. Nf3 {[%clk 1:31:19]}  Nc6 {[%clk 1:31:06]} 3. Nc3 {[%clk 1:31:36]}  Nf6 {[%clk 1:31:16]} 4. Bb5 {[%clk 1:30:53]}  g6 {[%clk 1:31:18]} 5. e5 {[%clk 1:28:22]}  Ng4 {[%clk 1:31:27]} 6. Bxc6 {[%clk 1:28:47]}  dxc6 {[%clk 1:31:49]} 7. d3 {[%clk 1:27:40]}  Bg7 {[%clk 1:28:10]} 8. Qe2 {[%clk 1:27:17]}  O-O {[%clk 1:26:35]} 9. O-O {[%clk 1:22:04]}  b6 {[%clk 1:21:26]} 10. Qe4 {[%clk 1:12:55]}  Bf5 {[%clk 1:07:48]} 11. Qf4 {[%clk 1:04:50]}  Be6 {[%clk 1:00:58]} 12. Qg3 {[%clk 1:01:42]}  Qd7 {[%clk 0:47:31]} 13. Re1 {[%clk 0:55:27]}  Nh6 {[%clk 0:41:34]} 14. Bxh6 {[%clk 0:55:50]}  Bxh6 {[%clk 0:42:02]} 15. Rad1 {[%clk 0:51:56]}  Bg7 {[%clk 0:28:19]} 16. h3 {[%clk 0:50:38]}  Rad8 {[%clk 0:27:15]} 17. a3 {[%clk 0:47:37]}  h6 {[%clk 0:24:12]} 18. Qf4 {[%clk 0:41:24]}  Kh7 {[%clk 0:21:39]} 19. b4 {[%clk 0:40:23]}  cxb4 {[%clk 0:21:38]} 20. axb4 {[%clk 0:41:19]}  f6 {[%clk 0:19:10]} 21. Qc1 {[%clk 0:35:51]}  fxe5 {[%clk 0:12:55]} 22. Ne4 {[%clk 0:34:50]}  Rxf3 {[%clk 0:09:14]} 23. gxf3 {[%clk 0:35:00]}  Bxh3 {[%clk 0:09:42]} 24. Ng3 {[%clk 0:30:30]}  Rf8 {[%clk 0:09:43]} 25. Qe3 {[%clk 0:29:00]}  Be6 {[%clk 0:05:13]} 26. c4 {[%clk 0:27:56]}  h5 {[%clk 0:05:30]} 27. Kg2 {[%clk 0:21:15]}  Bh3+ {[%clk 0:05:35]} 28. Kh2 {[%clk 0:21:03]}  h4 {[%clk 0:04:23]} 29. Ne4 {[%clk 0:20:21]}  Bf5 {[%clk 0:02:56]} 30. Qg5 {[%clk 0:18:41]}  Bh6 {[%clk 0:02:20]} 31. Qxh4 {[%clk 0:19:02]}  Kg7 {[%clk 0:02:48]} 32. Kg2 {[%clk 0:19:11]}  Qe6 {[%clk 0:00:33]} 33. Rh1 {[%clk 0:17:14]}  g5 {[%clk 0:00:41]} 34. Qg3 {[%clk 0:17:43]}  g4 {[%clk 0:00:33]} 35. fxg4 {[%clk 0:17:05]}  Bf4 {[%clk 0:00:32]} 36. gxf5+ {[%clk 0:17:14]} 1-0


[Site "http://www.chessbomb.com"]